bitfinex-derivatives/quotes_ETHF0:USTF0_20251003
["timestamp","ask_amount","ask_price","bid_price","bid_amount"]
[1759506133881,0.21862738,4501.9,4501.8,1.15348705]
[1759506134183,0.22692738,4501.9,4501.8,1.15348705]
[1759506135382,0.00192738,4501.9,4501.8,1.15348705]
[1759506137180,0.3375,4503.0,4502.9,0.39946]
[1759506137387,3.2078,4503.2,4503.1,0.39944]
[1759506137581,0.4417,4503.5,4503.4,1.15061]
[1759506138090,0.6528,4503.5,4503.4,1.15061]
[1759506138286,0.65470804,4503.5,4503.4,1.15061]
[1759506138881,0.44360804,4503.5,4503.4,1.15061]
[1759506140184,0.44360804,4503.5,4503.4,0.7512]
[1759506140483,0.21860804,4503.5,4503.4,0.7512]
[1759506140688,0.65470804,4503.5,4503.4,0.7512]
[1759506141683,0.44360804,4503.5,4503.4,0.7512]
[1759506142188,0.00190804,4503.5,4503.4,5.7512]
[1759506145180,0.3375,4504.2,4503.4,5.7512]
[1759506145181,0.5542,4505.1,4505.0,0.2198]
[1759506145384,1.46077355,4505.1,4505.0,0.5369]
[1759506145587,0.4278,4504.9,4504.8,0.3171]
[1759506145783,0.7653,4504.9,4504.8,0.7512]
[1759506145984,0.225,4505.1,4505.0,0.4341]
[1759506146289,0.21831713,4505.1,4505.0,0.87615953]
[1759506146589,0.00161713,4505.1,4505.0,0.87615953]
[1759506147084,0.73361713,4505.1,4505.0,0.22185953]
[1759506147284,5.95861713,4505.1,4505.0,0.00205953]
[1759506147994,6.42923777,4505.1,4505.0,0.00205953]
[1759506148192,0.2091,4504.3,4504.2,0.82641]
[1759506148490,0.732,4504.3,4504.2,0.61551]
[1759506148989,0.5418,4504.5,4504.4,0.39929]
[1759506149286,0.5418,4504.5,4504.4,0.82864011]
[1759506149885,0.732,4504.9,4504.8,0.2162]
[1759506150090,0.957,4504.9,4504.8,0.2162]
[1759506150291,0.957,4504.9,4504.4,0.33385011]
[1759506150490,0.5259,4504.8,4504.7,0.2162]
[1759506150688,0.732,4504.8,4504.7,0.2162]
[1759506151083,0.957,4504.8,4504.7,0.7587]
[1759506151688,0.957,4504.8,4504.7,0.4271]
[1759506151891,0.957,4504.8,4504.4,0.33385011]
[1759506152088,0.3396,4504.5,4504.4,0.00225011]
[1759506152395,0.8704,4504.5,4504.4,0.00225011]
[1759506153296,1.34131392,4504.5,4504.4,0.00225011]
[1759506155598,1.56631392,4504.5,4504.4,0.00225011]
[1759506157495,1.34131392,4504.5,4504.4,0.00225011]
[1759506157702,1.56631392,4504.5,4504.4,0.00225011]
[1759506158402,1.34131392,4504.5,4504.4,0.00225011]
[1759506158703,1.56631392,4504.5,4504.4,0.00225011]
[1759506160007,6.56631392,4504.5,4504.4,0.00225011]
[1759506162310,1.56631392,4504.5,4504.4,0.00225011]
[1759506162508,1.34131392,4504.5,4504.4,0.43845011]
[1759506162708,1.56631392,4504.5,4504.4,0.76805011]
[1759506163510,1.34131392,4504.5,4504.4,0.76805011]
[1759506163711,1.56631392,4504.5,4504.4,0.76805011]
[1759506164411,1.56631392,4504.5,4504.4,0.43845011]
[1759506165318,1.34131392,4504.5,4504.4,0.43845011]
[1759506165506,1.56631392,4504.5,4504.4,0.43845011]
[1759506166012,1.56631392,4504.5,4504.4,0.21855011]
[1759506168115,1.34131392,4504.5,4504.4,0.21855011]
[1759506168721,0.69591392,4504.5,4504.4,1.16734011]
[1759506169116,0.91341392,4504.5,4504.4,1.16734011]
[1759506169317,1.23641392,4504.5,4504.4,1.16734011]
[1759506169512,1.01141392,4504.5,4504.4,1.16734011]
[1759506169716,0.69591392,4504.5,4504.4,1.16734011]
[1759506170724,1.44421392,4504.5,4504.4,1.16734011]
[1759506172418,1.44421392,4504.5,4504.4,0.76805011]
[1759506172617,1.56631392,4504.5,4504.4,0.43845011]
[1759506173021,1.56631392,4504.5,4504.4,0.00225011]
[1759506173418,1.56531392,4504.5,4504.4,0.00225011]
[1759506173621,1.56531392,4504.5,4504.4,0.21855011]
[1759506173819,1.56531392,4504.5,4504.4,0.00225011]
[1759506175419,1.56531392,4504.5,4503.5,3.2078]
[1759506175623,0.7483,4503.6,4503.5,3.4241]
[1759506175923,0.9723,4503.6,4503.5,3.2078]
[1759506176124,0.9723,4503.6,4503.5,3.4241]
[1759506176425,0.8704,4503.5,4503.4,0.2163]
[1759506176818,0.8704,4503.5,4503.4,0.21857716]
[1759506177927,1.34312915,4503.5,4503.4,0.00227716]
[1759506180526,1.56712915,4503.5,4503.4,0.00227716]
[1759506181026,1.56712915,4503.5,4503.4,0.21857716]
[1759506181427,1.56712915,4503.5,4503.4,0.43847716]
[1759506181823,0.47272915,4503.5,4503.4,1.16745716]
[1759506182031,0.1221,4504.5,4504.1,0.81771]
[1759506182032,0.2183,4504.2,4504.1,0.81771]
[1759506182327,0.91481216,4504.2,4504.1,4.02551]
[1759506182521,0.91481216,4504.2,4504.1,4.34451]
[1759506182717,1.24971216,4504.2,4504.1,4.34451]
[1759506182919,0.47251216,4504.2,4504.1,4.34451]
[1759506183118,0.1316,4505.0,4504.1,4.34451]
[1759506183119,0.3349,4505.0,4504.9,0.4184]
[1759506183420,0.9351,4505.0,4504.9,0.7374]
[1759506183730,1.0581,4505.0,4504.7,3.2078]
[1759506183926,0.4212,4504.8,4504.7,3.81156]
[1759506184224,0.7561,4504.3,4504.2,3.4123]
[1759506184428,0.7561,4504.3,4504.2,3.2078]
[1759506184731,0.7561,4504.3,4504.2,3.4123]
[1759506185224,0.7561,4504.3,4503.7,3.2078]
[1759506185225,0.123,4504.0,4503.7,3.2078]
[1759506185428,0.8791,4503.5,4503.4,0.20677716]
[1759506185931,0.8791,4503.5,4503.4,0.42067716]
[1759506186333,0.8791,4503.5,4503.4,0.00227716]
[1759506187924,0.4212,4503.1,4502.5,3.2078]
[1759506188132,0.7561,4502.6,4502.5,3.2078]
[1759506188327,0.7561,4502.6,4502.5,3.4123]
[1759506188923,0.7561,4502.6,4502.5,3.41435548]
[1759506189122,0.7561,4502.6,4502.5,0.00205548]
[1759506190627,0.7561,4502.6,4502.5,0.42045548]
[1759506191923,0.5532,4502.6,4502.5,0.73945548]
[1759506192232,0.2183,4502.6,4502.5,3.94725548]
[1759506192420,0.5532,4502.6,4502.5,3.94725548]
[1759506193331,0.7561,4502.6,4502.5,3.94725548]
[1759506194126,0.7561,4502.6,4502.5,3.62825548]
[1759506194329,0.7561,4502.6,4502.5,0.00205548]
[1759506195327,0.7561,4502.6,4502.5,0.20655548]
[1759506196536,0.7561,4502.6,4502.5,0.00205548]
[1759506197433,0.4212,4501.6,4501.5,3.4123]
[1759506197639,0.7561,4501.6,4501.5,3.4123]
[1759506197935,0.5532,4501.6,4501.5,3.9452]
[1759506198334,0.7561,4501.6,4501.5,3.9452]
[1759506198638,0.0024639,4501.6,4501.5,4.07118596]
[1759506200733,0.0024639,4501.6,4501.5,3.94728596]
[1759506200734,0.7585639,4501.6,4501.5,3.94728596]
[1759506201034,0.7585639,4501.6,4501.5,3.20988596]
[1759506201237,1.22923304,4501.6,4501.5,0.00208596]
[1759506201436,0.7585639,4501.6,4501.5,0.00208596]
[1759506201732,0.7585639,4501.6,4501.5,0.20658596]
[1759506201935,0.7585639,4501.6,4501.5,0.00208596]
[1759506202335,1.22914145,4501.6,4501.5,0.00208596]
[1759506202535,1.45314145,4501.6,4501.5,0.00208596]
[1759506203136,0.9825639,4501.6,4501.5,0.00208596]
[1759506203937,1.45223763,4501.6,4501.5,0.00208596]
[1759506204637,1.45223763,4501.6,4500.7,0.319]
[1759506204638,0.7561,4500.8,4500.7,0.2045]
[1759506204837,0.4212,4500.6,4500.5,3.2078]
[1759506205039,0.4212,4500.6,4500.5,3.4123]
[1759506205040,0.7561,4500.6,4500.5,3.4123]
[1759506205242,0.5532,4500.1,4500.0,3.9452]
[1759506205443,0.123,4500.0,4499.9,0.2045]
[1759506205640,0.2183,4500.0,4499.9,0.7374]
[1759506205843,0.123,4501.0,4500.5,0.4184]
[1759506206038,0.5532,4500.7,4500.6,0.7374]
[1759506206641,0.7561,4500.7,4500.6,0.4184]
[1759506206939,0.5532,4500.7,4500.6,0.7335]
[1759506207135,0.7565,4501.4,4501.3,0.4274]
[1759506207340,0.9805,4501.4,4501.3,0.7425]
[1759506207535,0.7565,4501.4,4501.3,0.7425]
[1759506207739,0.9805,4501.4,4501.3,0.7425]
[1759506208143,0.771,4501.4,4501.3,0.7425]
[1759506208448,0.0024639,4501.6,4501.5,0.4274]
[1759506208641,0.2264639,4501.6,4501.5,0.8761]
[1759506208842,0.0024639,4501.6,4501.5,0.8761]
[1759506209543,3.2078,4502.9,4502.5,0.7425]
[1759506209745,0.547,4502.7,4502.6,0.7425]
[1759506210545,0.1224,4502.5,4502.3,3.2078]
[1759506210743,0.7565,4502.4,4502.3,3.2078]
[1759506210946,0.9805,4502.4,4502.3,3.2078]
[1759506211141,0.9805,4502.4,4501.7,3.2078]
[1759506211543,0.3337,4502.3,4501.7,3.2078]
[1759506211953,0.224,4502.2,4501.7,3.2078]
[1759506212249,0.7345,4502.1,4502.0,0.2156]
[1759506212452,0.7345,4501.8,4501.7,3.4234]
[1759506212746,0.3057,4501.7,4501.2,3.2078]
[1759506212953,0.224,4501.6,4501.5,0.4226]
[1759506213248,0.7457,4501.6,4501.5,0.7569]
[1759506213744,0.224,4501.6,4501.5,6.28125]
[1759506214345,3.2078,4502.9,4501.8,0.39951]
[1759506214550,0.5217,4502.5,4502.4,0.7569]
[1759506214850,0.5217,4502.5,4502.4,1.15637]
[1759506215146,0.224,4502.5,4502.4,1.15637]
[1759506216158,0.9585,4502.5,4502.4,0.7569]
[1759506216347,0.7345,4502.5,4502.4,0.7569]
[1759506217151,0.8693,4502.5,4502.3,0.39948]
[1759506217552,0.7345,4502.4,4502.3,0.61508]
[1759506217857,0.7345,4502.4,4502.3,0.82208]
[1759506218057,0.7345,4502.4,4502.3,1.15638]
[1759506218450,0.224,4502.6,4502.5,0.39946]
[1759506218651,0.9585,4502.6,4502.5,0.4226]
[1759506218852,0.9585,4502.6,4502.5,0.82206]
[1759506219060,0.9585,4502.6,4502.5,0.7569]
[1759506219254,0.224,4502.6,4502.5,0.7569]
[1759506219558,0.7457,4502.6,4502.5,0.7569]
[1759506220056,0.22628429,4502.7,4502.6,1.15635]
[1759506220657,0.96078429,4502.7,4502.6,0.7569]
[1759506221756,0.73678429,4502.7,4502.6,0.4226]
[1759506221962,0.52398429,4502.7,4502.6,0.7569]
[1759506222556,0.73678429,4502.7,4502.6,0.7569]
[1759506222860,0.73678429,4502.7,4502.6,1.15635]
[1759506223050,0.00228429,4502.7,4502.6,1.15635]
[1759506226662,0.3057,4504.4,4504.0,0.94923]
[1759506226966,1.12288856,4504.3,4504.2,0.4226]
[1759506227265,0.9585,4504.3,4504.2,0.4226]
[1759506227466,0.9585,4504.3,4504.2,0.7569]
[1759506227664,0.96127135,4504.3,4504.2,0.75929833]
[1759506227968,0.73727135,4504.3,4504.2,0.75929833]
[1759506229962,0.52447135,4504.3,4504.2,0.75929833]
[1759506230166,0.8693,4505.5,4505.4,0.2156]
[1759506230360,1.5622208,4505.5,4505.0,0.3343]
[1759506230555,0.216,4504.8,4504.7,4.02967]
[1759506230760,0.5217,4504.8,4504.7,4.36397]
[1759506231060,0.52371719,4504.8,4504.7,4.36397]
[1759506232068,0.00201719,4504.8,4504.7,4.36397]
[1759506234871,0.21801719,4504.8,4504.7,4.36397]
[1759506235069,0.52371719,4504.8,4504.7,4.36397]
[1759506235966,0.21801719,4504.8,4504.7,4.36397]
[1759506236772,0.00201719,4504.8,4504.7,4.36397]
[1759506237270,0.21801719,4504.8,4504.7,4.36397]
[1759506237670,0.216,4505.5,4505.4,0.9405]
[1759506237873,0.5636,4506.0,4505.9,0.7569]
[1759506238372,0.8693,4506.0,4505.9,0.4226]
[1759506238766,0.87147211,4506.0,4505.9,0.4226]
[1759506239464,0.87147211,4506.0,4505.6,0.3343]
[1759506239669,1.09547211,4506.0,4505.8,0.39916]
[1759506239866,1.09547211,4506.0,4505.9,0.2156]
[1759506240262,0.216,4505.7,4505.6,0.94909]
[1759506240466,0.7345,4505.7,4505.6,0.39919]
[1759506240667,0.5217,4505.6,4505.5,0.5413]
[1759506240863,0.5217,4505.6,4505.5,0.7569]
[1759506241062,0.3057,4505.9,4505.5,0.1248]
[1759506241271,0.00217211,4506.0,4505.9,0.7569]
[1759506241577,0.73667211,4506.0,4505.9,0.7569]
[1759506241873,0.87147211,4506.0,4505.9,0.4226]
[1759506242574,0.8716,4505.5,4505.4,3.8238]
[1759506243275,0.8716,4505.5,4505.4,4.032]
[1759506243476,0.8716,4505.5,4505.4,4.3493]
[1759506244874,0.7424,4505.5,4505.4,4.3493]
[1759506245074,0.8716,4505.5,4505.4,4.032]
[1759506245467,0.8716,4505.5,4505.4,3.607]
[1759506245667,0.8716,4505.5,4504.9,3.2078]
[1759506245866,0.5347,4505.0,4504.9,3.6328]
[1759506246066,0.5347,4505.0,4504.9,4.34935]
[1759506246572,0.7424,4505.0,4504.9,4.34935]
[1759506247982,0.7424,4505.0,4504.9,4.03205]
[1759506247983,0.8716,4505.0,4504.9,4.03205]
[1759506248274,0.8716,4505.0,4504.8,0.39925]
[1759506248478,0.8716,4505.0,4504.4,0.39929]
[1759506248479,0.8716,4504.5,4504.4,0.39929]
[1759506248685,0.8716,4504.5,4504.2,0.00239833]
[1759506248872,0.7424,4504.3,4504.2,0.00239833]
[1759506249884,0.8716,4503.5,4503.4,3.4246]
[1759506250085,0.8716,4503.5,4503.4,4.03218]
[1759506250280,0.8716,4503.5,4503.4,4.34948]
[1759506250984,0.8716,4503.5,4503.4,0.82668121]
[1759506251184,0.8716,4503.5,4503.4,0.00230121]
[1759506251480,1.0956,4503.5,4503.4,0.74460121]
[1759506252279,1.0956,4503.5,4503.4,0.21910121]
[1759506253383,1.0956,4503.5,4503.4,0.00230121]
[1759506254187,1.56315912,4503.5,4503.4,0.00230121]
[1759506255483,1.33915912,4503.5,4503.4,0.00230121]
[1759506255683,1.56315912,4503.5,4503.4,0.00230121]
[1759506258191,1.0956,4503.5,4503.4,0.00230121]
[1759506260491,1.0956,4503.5,4503.4,0.21910121]
[1759506260687,0.5347,4503.5,4503.4,0.74460121]
[1759506260995,0.224,4503.5,4503.4,0.74460121]
[1759506261289,0.224,4503.5,4503.4,1.14398121]
[1759506261492,0.224,4503.5,4503.4,4.35178121]
[1759506261679,0.1292,4504.5,4503.4,4.35178121]
[1759506261680,0.5347,4504.2,4504.1,0.425]
[1759506261880,0.7587,4504.2,4504.1,0.7423]
[1759506262086,0.9664,4504.2,4504.1,0.7423]
[1759506262482,0.5402,4504.0,4503.4,3.52740121]
[1759506262682,0.8716,4503.5,4503.4,3.63510121]
[1759506262898,0.8716,4503.5,4503.4,0.00230121]
[1759506263094,0.8716,4503.0,4502.9,3.4246]
[1759506263291,1.0496,4503.0,4502.9,3.2078]
[1759506263599,0.5402,4502.5,4502.4,3.4246]
[1759506263799,0.8716,4502.5,4502.4,3.4246]
[1759506263996,0.87395017,4502.5,4502.4,3.42674223]
[1759506264296,0.87395017,4502.5,4502.4,0.00214223]
[1759506266999,0.87395017,4502.5,4502.4,0.21894223]
[1759506267299,0.96875017,4502.5,4502.4,0.75644223]
[1759506267688,1.10155017,4502.5,4502.4,0.42804223]
[1759506267895,1.10155017,4502.5,4502.4,0.21894223]
[1759506269801,1.10155017,4502.5,4502.4,0.00214223]
[1759506270198,1.10155017,4502.5,4502.4,0.21174223]
[1759506270395,0.00235017,4502.5,4502.4,0.74924223]
[1759506270698,0.00235017,4502.5,4502.4,8.95704223]
[1759506273200,0.54825017,4502.5,4502.4,3.95704223]
[1759506273400,0.90045017,4502.5,4502.4,3.62864223]
[1759506273798,0.90045017,4502.5,4502.4,3.41954223]
[1759506274200,0.90045017,4502.5,4502.4,0.00214223]
[1759506274504,1.12445017,4502.5,4502.4,0.00214223]
[1759506275499,0.90045017,4502.5,4502.4,0.00214223]
[1759506275804,1.12445017,4502.5,4502.4,0.00214223]
[1759506277204,0.90045017,4502.5,4502.4,0.00214223]
[1759506277405,1.12445017,4502.5,4502.4,0.00214223]
[1759506278205,1.59355418,4502.5,4502.4,0.00214223]
[1759506279106,1.59355418,4502.5,4502.4,0.73244223]
[1759506279307,1.59355418,4502.5,4502.4,0.42014223]
[1759506279804,1.59355418,4502.5,4502.4,0.21704223]
[1759506280005,1.36955418,4502.5,4502.4,0.21704223]
[1759506280308,1.59355418,4502.5,4502.4,0.21704223]
[1759506281107,1.59355418,4502.5,4502.4,0.00214223]
[1759506282408,1.36955418,4502.5,4502.4,0.00214223]
[1759506282603,1.59355418,4502.5,4502.4,0.21704223]
[1759506283005,1.36955418,4502.5,4502.4,1.13191223]
[1759506283205,1.59355418,4502.5,4502.4,0.73244223]
[1759506284008,0.47145418,4502.5,4502.4,4.33971223]
[1759506284212,0.00235017,4502.5,4502.4,4.33971223]
[1759506284809,0.00235017,4502.5,4502.4,9.33971223]
[1759506285002,0.54825017,4502.5,4502.4,3.94024223]
[1759506285207,0.90045017,4502.5,4502.4,3.62794223]
[1759506285404,0.90045017,4502.5,4502.4,3.42484223]
[1759506285608,0.90045017,4502.5,4502.4,0.00214223]
[1759506285808,1.36996257,4502.5,4502.4,0.00214223]
[1759506287115,1.36996257,4502.5,4502.4,0.21704223]
[1759506287316,1.59396257,4502.5,4502.4,0.42014223]
[1759506288316,1.59396257,4502.5,4502.4,0.81961223]
[1759506288517,1.23686257,4502.5,4502.4,1.13191223]
[1759506288816,0.22595017,4502.5,4502.4,1.13191223]
[1759506289016,0.00235017,4502.5,4502.4,1.13191223]
[1759506290916,0.00235017,4502.5,4502.4,9.33971223]
[1759506291924,0.4515,4504.0,4503.5,0.1345]
[1759506292120,0.2236,4504.0,4503.9,0.418]
[1759506292419,1.59187242,4504.0,4503.9,0.418]
[1759506292726,1.59187242,4504.0,4503.9,0.2149]
[1759506292923,1.46157215,4504.0,4503.9,0.7303]
[1759506294421,1.23757215,4504.0,4503.9,0.7303]
[1759506294623,0.76779973,4504.0,4503.9,0.7303]
[1759506295626,0.00279973,4504.0,4503.9,3.9381]
[1759506299721,0.00279973,4504.0,4503.9,4.33744]
[1759506299929,0.00279973,4504.0,4503.9,9.56144]
[1759506300530,3.2078,4504.9,4504.8,1.12956]
[1759506301236,0.5459,4505.0,4504.9,1.12954]
[1759506301527,0.54819384,4505.0,4504.9,0.7303]
[1759506301726,0.76729384,4505.0,4504.9,0.7303]
[1759506302321,0.89359384,4505.0,4504.9,0.418]
[1759506302829,0.54819384,4505.0,4504.9,0.7502]
[1759506303226,0.76079384,4505.0,4504.9,0.7502]
[1759506303433,0.3141,4504.9,4504.8,3.60705]
[1759506303729,0.7471,4504.9,4504.8,4.37125]
[1759506304131,0.2204,4504.9,4504.8,4.37125]
[1759506304324,0.00229384,4505.0,4504.9,0.7642]
[1759506304524,0.00229384,4505.0,4504.9,5.7642]
[1759506305831,0.74939384,4505.0,4504.9,0.432]
[1759506306035,0.87569384,4505.0,4504.9,0.2074]
[1759506306529,0.87569384,4505.0,4504.5,0.39927]
[1759506306530,0.433,4504.6,4504.5,0.39927]
[1759506306833,0.1263,4504.5,4504.3,3.60709]
[1759506307032,0.7471,4504.4,4504.3,3.4152]
[1759506307329,0.5345,4504.4,4504.3,0.2074]
[1759506307522,0.7471,4504.4,4504.3,0.7642]
[1759506308924,0.3141,4504.8,4504.6,0.39927]
[1759506309132,0.00229384,4505.0,4504.9,0.7642]
[1759506309635,0.53679384,4505.0,4504.9,0.7642]
[1759506310632,0.22269384,4505.0,4504.9,0.7642]
[1759506310929,0.53679384,4505.0,4504.9,0.7642]
[1759506312434,0.74939384,4505.0,4504.9,0.7642]
[1759506313235,0.5345,4504.9,4504.8,0.39926]
[1759506313426,0.7471,4504.9,4504.8,0.39926]
[1759506313830,0.3141,4504.9,4504.8,0.39926]
[1759506314738,0.00229384,4505.0,4504.8,5.39926]
[1759506314935,0.00229384,4505.0,4504.9,0.224]
[1759506316030,3.84e-06,4505.0,4504.9,0.224]
[1759506316241,0.3141,4505.7,4505.4,0.3992]
[1759506316433,0.3141,4505.7,4505.6,0.39918]
[1759506316831,0.4472,4506.0,4505.9,0.39916]
[1759506317036,0.4472,4506.0,4505.9,3.60696]
[1759506317231,0.44905028,4506.0,4505.9,3.60958447]
[1759506317738,0.44905028,4506.0,4505.9,3.83358447]
[1759506318240,0.88205028,4506.0,4505.9,3.83358447]
[1759506319244,0.88205028,4506.0,4505.9,3.60958447]
[1759506319737,0.88205028,4506.0,4505.9,3.21042447]
[1759506320642,0.88205028,4506.0,4505.9,0.00262447]
[1759506320831,0.3467,4505.5,4505.4,3.2078]
[1759506321036,0.8734,4505.5,4505.4,3.2078]
[1759506321944,0.8734,4505.0,4504.9,3.60705]
[1759506322143,0.4404,4505.0,4504.9,3.60904823]
[1759506322841,0.1263,4505.5,4505.4,0.3992]
[1759506323139,0.56795028,4506.0,4505.4,3.4318]
[1759506323446,0.3467,4505.5,4505.4,3.607]
[1759506323838,0.6608,4505.5,4505.4,3.607]
[1759506324239,0.8734,4505.5,4505.4,3.607]
[1759506325238,0.6608,4505.5,4505.4,3.607]
[1759506325444,0.4404,4505.5,4505.4,3.607]
[1759506325745,0.13495028,4506.0,4505.9,0.39916]
[1759506326056,0.13495028,4506.0,4505.9,3.60696]
[1759506326235,0.44905028,4506.0,4505.9,3.60696]
[1759506327335,0.00185028,4506.0,4505.9,3.60696]
[1759506327540,0.308,4506.8,4506.7,0.39909]
[1759506327743,0.308,4506.8,4506.7,3.60689]
[1759506328650,0.00155601,4506.8,4506.7,3.83089]
[1759506328849,0.30955601,4506.8,4506.7,3.83089]
[1759506332057,0.00155601,4506.8,4506.7,3.83089]
[1759506336553,0.31225601,4506.8,4506.7,3.83089]
[1759506337857,0.72315601,4506.8,4506.7,3.2078]
[1759506338053,0.72315601,4506.8,4506.7,3.60689]
[1759506338255,0.72315601,4506.8,4506.7,3.2078]
[1759506338462,0.72315601,4506.8,4506.7,3.60689]
[1759506340064,0.31225601,4506.8,4506.7,3.60689]
[1759506340866,0.31225601,4506.8,4506.7,3.83089]
[1759506341659,0.51935601,4506.8,4506.7,3.83089]
[1759506341857,0.72315601,4506.8,4506.7,3.83089]
[1759506342256,0.72315601,4506.8,4506.7,3.60689]
[1759506343759,0.31225601,4506.8,4506.7,3.60689]
[1759506344361,0.02414252,4507.1,4507.0,0.4283]
[1759506344565,0.02414252,4507.1,4507.0,1.02306]
[1759506344966,0.23124252,4507.1,4507.0,1.02306]
[1759506345273,0.43504252,4507.1,4507.0,0.82736]
[1759506345463,0.43738628,4507.1,4507.0,0.82736]
[1759506345663,0.23358628,4507.1,4507.0,0.82736]
[1759506345866,0.02648628,4507.1,4507.0,1.02306]
[1759506346462,0.33718628,4507.1,4507.0,1.02306]
[1759506346864,0.43738628,4507.1,4506.7,3.2078]
[1759506347065,0.7216,4506.8,4506.7,3.82669]
[1759506347465,0.7216,4506.4,4506.3,0.39912]
[1759506347671,0.3107,4506.3,4506.2,1.02313]
[1759506347872,0.4437,4506.5,4506.4,0.82741]
[1759506348070,0.3107,4506.5,4506.4,1.02311]
[1759506348375,0.5178,4506.8,4506.7,0.82738]
[1759506348568,0.7216,4506.8,4506.7,0.82738]
[1759506348969,0.7216,4506.2,4506.1,3.4276]
[1759506349270,0.7216,4506.2,4506.1,4.03524]
[1759506349475,0.7216,4506.2,4506.1,3.82674]
[1759506349972,0.7216,4506.2,4506.1,4.03524]
[1759506350366,0.7216,4506.2,4506.1,3.6361]
[1759506350567,0.7216,4506.2,4506.1,3.2078]
[1759506350769,0.7216,4506.2,4506.1,3.4276]
[1759506351072,0.133,4506.0,4505.6,3.4318]
[1759506351377,0.7216,4505.9,4505.8,0.61896]
[1759506351873,0.7216,4505.9,4505.8,0.82746]
[1759506352774,0.7216,4505.9,4505.8,0.4283]
[1759506353363,0.7216,4505.9,4505.7,0.39917]
[1759506353563,0.7216,4505.7,4505.6,3.4276]
[1759506353768,0.7216,4505.7,4505.6,3.6361]
[1759506353977,0.133,4506.5,4505.6,3.6361]
[1759506353978,0.2071,4506.3,4506.2,0.60763]
[1759506354173,0.133,4506.5,4506.3,0.39912]
[1759506354477,0.6508,4506.5,4506.4,0.4283]
[1759506355271,0.6508,4506.5,4506.4,3.8318]
[1759506355667,0.4437,4506.5,4506.4,3.8318]
[1759506356172,0.8546,4506.5,4506.4,3.2078]
[1759506356573,0.8546,4506.5,4506.4,3.4276]
[1759506356773,0.8546,4506.5,4506.4,3.6361]
[1759506357675,0.8546,4506.5,4506.4,3.2078]
[1759506358776,0.8546,4506.5,4506.4,3.60691]
[1759506358977,0.8546,4506.5,4506.4,3.82671]
[1759506359680,0.8546,4506.5,4506.4,3.4276]
[1759506359877,0.8546,4506.5,4506.4,3.2078]
[1759506360270,0.8546,4506.5,4506.4,3.4276]
[1759506361274,0.8546,4506.5,4505.9,3.2078]
[1759506361577,0.8546,4506.0,4505.9,4.03525]
[1759506361781,0.6508,4506.5,4506.4,0.82741]
[1759506361977,0.6508,4506.5,4506.4,1.02311]
[1759506362373,0.5546,4506.5,4506.4,0.2094]
[1759506362884,0.3401,4506.5,4506.4,3.628]
[1759506363077,0.6705,4506.5,4506.4,3.8242]
[1759506363284,0.6705,4506.5,4506.4,3.628]
[1759506363585,0.885,4506.5,4506.4,3.628]
[1759506364280,0.5546,4506.5,4505.9,3.60696]
[1759506364583,0.673,4506.0,4505.9,3.628]
[1759506364778,0.551,4506.4,4506.3,0.39912]
[1759506364993,0.7655,4506.4,4506.3,0.4202]
[1759506366073,0.3426,4506.0,4505.9,3.4172]
[1759506366276,0.8875,4506.0,4505.9,3.42419]
[1759506366476,0.8875,4506.0,4505.9,3.02503]
[1759506366885,0.8875,4506.0,4505.9,3.42419]
[1759506367082,0.8875,4506.0,4505.9,2.60483]
[1759506367778,0.8875,4506.0,4505.2,0.2094]
[1759506367779,0.7655,4505.3,4505.2,0.2094]
[1759506367986,0.3304,4505.5,4505.4,1.0156]
[1759506368880,0.551,4505.9,4505.8,0.4202]
[1759506369179,0.551,4505.9,4505.8,0.2094]
[1759506369180,0.7655,4505.9,4505.8,0.2094]
[1759506369380,0.7655,4505.9,4505.8,0.4202]
[1759506369985,0.7655,4505.9,4505.8,0.2094]
[1759506370485,0.7655,4505.9,4505.8,0.60857]
[1759506370678,0.9895,4505.9,4505.8,0.81937]
[1759506371581,0.3304,4506.1,4505.9,0.1962]
[1759506371784,0.8875,4506.0,4505.9,0.4202]
[1759506372084,0.8875,4506.0,4505.9,0.81936]
[1759506372583,0.5681,4506.5,4506.4,0.81931]
[1759506372789,1.36448097,4506.5,4506.4,0.4202]
[1759506373777,1.36448097,4506.5,4506.4,0.81931]
[1759506374087,1.36448097,4506.5,4506.4,0.4202]
[1759506374284,0.91838097,4506.5,4506.4,1.01551]
[1759506374584,0.897,4506.5,4506.4,1.01551]
[1759506374785,0.897,4506.5,4506.4,0.81931]
[1759506375579,1.1115,4506.5,4506.4,0.39911]
[1759506375779,0.4524,4506.0,4505.6,3.628]
[1759506375982,0.58817586,4506.5,4505.6,3.628]
[1759506375983,0.5544,4506.2,4506.1,1.01554]
[1759506376386,1.01739159,4506.2,4506.1,0.81934]
[1759506376584,0.551,4506.2,4506.1,0.81934]
[1759506377377,0.3304,4506.2,4506.1,1.01554]
[1759506377580,0.02648628,4507.1,4507.0,1.01546]
[1759506377780,0.49892266,4507.1,4507.0,1.01546]
[1759506377986,0.3304,4507.9,4507.8,0.81919]
[1759506378289,0.551,4507.9,4507.8,4.02699]
[1759506378488,0.4351,4508.3,4508.2,1.15265]
[1759506378688,0.4351,4508.3,4507.8,3.2078]
[1759506378689,0.173,4508.9,4508.4,0.4202]
[1759506378888,0.4351,4509.4,4509.3,0.7537]
[1759506379088,0.66109045,4509.4,4509.3,0.2094]
[1759506379284,0.43709045,4509.4,4509.3,0.2094]
[1759506379485,0.122,4509.0,4508.6,0.39891]
[1759506379690,0.2206,4509.0,4508.9,0.81909]
[1759506379895,0.4351,4509.0,4508.9,1.15259]
[1759506380082,0.4446,4509.2,4509.1,0.4202]
[1759506380287,0.6591,4509.2,4509.1,0.4202]
[1759506380494,0.9895,4509.2,4509.1,0.4202]
[1759506380790,0.00199045,4509.4,4509.1,0.4202]
[1759506380983,0.122,4509.0,4508.8,0.2094]
[1759506381188,0.7655,4508.9,4508.8,0.4202]